fUST/lending_fUST_20250212
["ID","MTS","AMOUNT","RATE_DAILY","PERIOD"]
[352830198,1739353845820,-546.49,0.00012816,2]
[352830200,1739353845829,-500.0,0.00012816,2]
[352830202,1739353845839,-500.0,0.00012816,2]
[352830205,1739353845848,-500.0,0.00012816,2]
[352830207,1739353845857,-500.0,0.00012817,2]
[352830208,1739353845867,-500.0,0.00012817,2]
[352830211,1739353845876,-500.0,0.00012817,2]
[352830212,1739353845886,-500.0,0.00012817,2]
[352830214,1739353845896,-500.0,0.00012817,2]
[352830216,1739353845905,-1113.65,0.00012817,2]
[352830218,1739353845914,-3568.64,0.00012817,2]
[352830220,1739353845923,-500.0,0.00012817,2]
[352830222,1739353845934,-12078.98,0.00012817,2]
[352830224,1739353845944,-689.15,0.00012817,2]
[352830227,1739353845955,-500.0,0.00012817,2]
[352830228,1739353845964,-4419.04,0.00012817,2]
[352830230,1739353845974,-500.0,0.00012817,2]
[352830233,1739353845984,-539.44,0.00012817,2]
[352830235,1739353845993,-622.3,0.00012817,2]
[352830236,1739353846003,-500.0,0.00012818,2]
[352830239,1739353846013,-500.0,0.00012818,2]
[352830240,1739353846023,-529.42,0.00012818,2]
[352830243,1739353846032,-500.0,0.00012818,2]
[352830245,1739353846042,-1000.0,0.00012836,2]
[352830247,1739353846053,-178.54447103,0.000129,2]
[352830249,1739353846062,-500.0,0.00012953,2]
[352830251,1739353846072,-500.0,0.00012953,2]
[352830253,1739353846081,-793.11,0.00012953,2]
[352830255,1739353846091,-500.0,0.00012953,2]
[352830257,1739353846100,-500.0,0.00012953,2]
[352830259,1739353846110,-786.36,0.00012953,2]
[352830261,1739353846120,-500.0,0.00012953,2]
[352830263,1739353846130,-501.12,0.00012953,2]
[352830265,1739353846139,-500.0,0.00012953,2]
[352830267,1739353846148,-500.0,0.00012953,2]
[352830268,1739353846157,-546.49,0.00012953,2]
[352830270,1739353846166,-500.0,0.00012953,2]
[352830272,1739353846176,-647.78,0.00012953,2]
[352830274,1739353846185,-500.0,0.00012953,2]
[352830276,1739353846195,-500.0,0.00012954,2]
[352830278,1739353846205,-500.0,0.00012954,2]
[352830280,1739353846214,-500.0,0.00012954,2]
[352830282,1739353846224,-500.0,0.00012954,2]
[352830284,1739353846233,-500.0,0.00012954,2]
[352830286,1739353846243,-1113.65,0.00012954,2]
[352830288,1739353846252,-3568.64,0.00012954,2]
[352830290,1739353846262,-500.0,0.00012954,2]
[352830292,1739353846271,-12078.98,0.00012954,2]
[352830294,1739353846281,-689.15,0.00012954,2]
[352830296,1739353846290,-500.0,0.00012954,2]
[352830298,1739353846299,-4419.04,0.00012954,2]
[352830300,1739353846316,-500.0,0.00012954,2]
[352830302,1739353846326,-539.44,0.00012954,2]
[352830303,1739353846335,-622.3,0.00012954,2]
[352830304,1739353846344,-500.0,0.00012955,2]
[352830305,1739353846355,-500.0,0.00012955,2]
[352830306,1739353846364,-529.42,0.00012955,2]
[352830307,1739353846374,-345.91111322,0.00012955,2]
[352830308,1739353846383,-9998.59299344,0.00013,2]
[352830309,1739353846393,-500.0,0.0001308,2]
[352830310,1739353846402,-500.0,0.0001309,2]
[352830311,1739353846412,-500.0,0.0001309,2]
[352830312,1739353846421,-793.11,0.0001309,2]
[352830313,1739353846430,-500.0,0.0001309,2]
[352830314,1739353846440,-500.0,0.0001309,2]
[352830315,1739353846449,-786.36,0.0001309,2]
[352830317,1739353846459,-500.0,0.0001309,2]
[352830319,1739353846468,-501.12,0.0001309,2]
[352830321,1739353846480,-500.0,0.0001309,2]
[352830323,1739353846490,-500.0,0.0001309,2]
[352830325,1739353846499,-546.49,0.0001309,2]
[352830327,1739353846510,-263.06,0.0001309,2]
[352830329,1739353846519,-500.0,0.0001309,2]
[352830331,1739353846528,-500.0,0.00013091,2]
[352830333,1739353846537,-500.0,0.00013091,2]
[352830335,1739353846547,-500.0,0.00013091,2]
[352830337,1739353846557,-500.0,0.00013091,2]
[352830339,1739353846567,-500.0,0.00013091,2]
[352830340,1739353846576,-1113.65,0.00013091,2]
[352830342,1739353846586,-3568.64,0.00013091,2]
[352830344,1739353846595,-500.0,0.00013091,2]
[352830346,1739353846604,-12078.98,0.00013091,2]
[352830348,1739353846614,-689.15,0.00013091,2]
[352830350,1739353846624,-500.0,0.00013091,2]
[352830352,1739353846633,-4419.04,0.00013091,2]
[352830354,1739353846642,-500.0,0.00013091,2]
[352830357,1739353846652,-539.44,0.00013091,2]
[352830359,1739353846662,-622.3,0.00013091,2]
[352830360,1739353846672,-500.0,0.00013092,2]
[352830362,1739353846681,-500.0,0.00013092,2]
[352830364,1739353846690,-529.42,0.00013092,2]
[352830366,1739353846701,-354.9109976,0.00013151,2]
[352830368,1739353846710,-178.54447102,0.00013159,2]
[352830371,1739353846720,-9559.39824836,0.000132,2]
[352830373,1739353846730,-9998.59299344,0.000132,2]
[352830374,1739353846739,-500.0,0.00013227,2]
[352830376,1739353846749,-433.8,0.00013227,2]
[352830378,1739353846759,-793.11,0.00013227,2]
[352830380,1739353846769,-500.0,0.00013227,2]
[352830382,1739353846778,-500.0,0.00013227,2]
[352830384,1739353846788,-786.36,0.00013227,2]
[352830387,1739353846798,-500.0,0.00013227,2]
[352830389,1739353846808,-501.12,0.00013227,2]
[352830390,1739353846818,-500.0,0.00013227,2]
[352830392,1739353846828,-500.0,0.00013227,2]
[352830394,1739353846838,-546.49,0.00013227,2]
[352830396,1739353846847,-500.0,0.00013227,2]
[352830398,1739353846856,-500.0,0.00013228,2]
[352830400,1739353846866,-500.0,0.00013228,2]
[352830402,1739353846877,-500.0,0.00013228,2]
[352830404,1739353846887,-500.0,0.00013228,2]
[352830406,1739353846896,-500.0,0.00013228,2]
[352830408,1739353846906,-1113.65,0.00013228,2]
[352830410,1739353846915,-3568.64,0.00013228,2]
[352830412,1739353846926,-500.0,0.00013228,2]
[352830414,1739353846936,-12078.98,0.00013228,2]
[352830416,1739353846946,-689.15,0.00013228,2]
[352830418,1739353846956,-500.0,0.00013228,2]
[352830420,1739353846965,-4419.04,0.00013228,2]
[352830422,1739353846975,-500.0,0.00013228,2]
[352830424,1739353846985,-539.44,0.00013228,2]
[352830426,1739353846995,-622.3,0.00013228,2]
[352830428,1739353847004,-500.0,0.00013229,2]
[352830430,1739353847014,-302.58,0.00013229,2]
[352830432,1739353847023,-529.42,0.00013229,2]
[352830434,1739353847032,-500.0,0.00013364,2]
[352830436,1739353847042,-793.11,0.00013364,2]
[352830438,1739353847051,-500.0,0.00013364,2]
[352830440,1739353847061,-500.0,0.00013364,2]
[352830442,1739353847070,-786.36,0.00013364,2]
[352830444,1739353847079,-500.0,0.00013364,2]
[352830446,1739353847089,-501.12,0.00013364,2]
[352830448,1739353847099,-500.0,0.00013364,2]
[352830450,1739353847108,-500.0,0.00013364,2]
[352830452,1739353847119,-546.49,0.00013364,2]
[352830454,1739353847128,-500.0,0.00013364,2]
[352830456,1739353847137,-500.0,0.00013365,2]
[352830458,1739353847147,-500.0,0.00013365,2]
[352830460,1739353847156,-500.0,0.00013365,2]
[352830462,1739353847166,-500.0,0.00013365,2]
[352830463,1739353847175,-500.0,0.00013365,2]
[352830465,1739353847184,-1113.65,0.00013365,2]
[352830467,1739353847193,-3568.64,0.00013365,2]
[352830469,1739353847202,-500.0,0.00013365,2]
[352830471,1739353847211,-12078.98,0.00013365,2]
[352830473,1739353847221,-689.15,0.00013365,2]
[352830475,1739353847230,-500.0,0.00013365,2]
[352830477,1739353847240,-4419.04,0.00013365,2]
[352830479,1739353847251,-500.0,0.00013365,2]
[352830481,1739353847261,-539.44,0.00013365,2]
[352830483,1739353847271,-622.3,0.00013365,2]
[352830485,1739353847280,-500.0,0.00013366,2]
[352830487,1739353847289,-529.42,0.00013366,2]
[352830489,1739353847298,-9998.59299344,0.000134,2]
[352830491,1739353847309,-9559.39824836,0.000135,2]
[352830493,1739353847321,-500.0,0.00013501,2]
[352830495,1739353847331,-793.11,0.00013501,2]
[352830497,1739353847340,-649.20928314,0.00013501,2]
[352830499,1739353847350,-500.0,0.00013501,2]
[352830501,1739353847363,-786.36,0.00013501,2]
[352830503,1739353847373,-500.0,0.00013501,2]
[352830505,1739353847384,-501.12,0.00013501,2]
[352830507,1739353847394,-500.0,0.00013501,2]
[352830509,1739353847404,-343.31,0.00013501,2]
[352830511,1739353847414,-546.49,0.00013501,2]
[352830513,1739353847426,-500.0,0.00013501,2]
[352830515,1739353847436,-500.0,0.00013502,2]
[352830517,1739353847445,-361.55712056,0.00013502,2]
[352830519,1739353847454,-500.0,0.00013502,2]
[352830521,1739353847465,-500.0,0.00013502,2]
[352830523,1739353847475,-500.0,0.00013502,2]
[352830525,1739353847484,-1113.65,0.00013502,2]
[352830527,1739353847494,-3568.64,0.00013502,2]
[352830529,1739353847503,-500.0,0.00013502,2]
[352830530,1739353847513,-12078.98,0.00013502,2]
[352830532,1739353847523,-689.15,0.00013502,2]
[352830534,1739353847532,-500.0,0.00013502,2]
[352830536,1739353847542,-4419.04,0.00013502,2]
[352830538,1739353847552,-500.0,0.00013502,2]
[352830540,1739353847561,-539.44,0.00013502,2]
[352830542,1739353847571,-622.3,0.00013502,2]
[352830545,1739353847581,-500.0,0.00013503,2]
[352830547,1739353847591,-529.42,0.00013503,2]
[352830549,1739353847600,-354.9109976,0.00013507,2]
[352830551,1739353847610,-354.9109976,0.00013507,2]
[352830553,1739353847620,-354.9109976,0.00013507,2]
[352830555,1739353847630,-9998.59299344,0.000136,2]
[352830557,1739353847639,-500.0,0.00013638,2]
[352830559,1739353847649,-793.11,0.00013638,2]
[352830561,1739353847659,-500.0,0.00013638,2]
[352830563,1739353847669,-786.36,0.00013638,2]
[352830564,1739353847678,-500.0,0.00013638,2]
[352830567,1739353847689,-501.12,0.00013638,2]
[352830569,1739353847699,-500.0,0.00013638,2]
[352830571,1739353847709,-546.49,0.00013638,2]
[352830573,1739353847718,-151.0,0.00013638,2]
[352830575,1739353847729,-200.881105,0.00013638,2]
[352830577,1739353847738,-500.0,0.00013638,2]
[352830579,1739353847747,-151.0,0.00013638,2]
[352830581,1739353847757,-510.08,0.00013639,2]
[352830583,1739353847766,-500.0,0.00013639,2]
[352830585,1739353847776,-500.0,0.00013639,2]
[352830587,1739353847785,-500.0,0.00013639,2]
[352830589,1739353847794,-1113.65,0.00013639,2]
[352830590,1739353847804,-3568.64,0.00013639,2]
[352830593,1739353847814,-500.0,0.00013639,2]
[352830595,1739353847824,-12078.98,0.00013639,2]
[352830597,1739353847834,-689.15,0.00013639,2]
[352830599,1739353847844,-500.0,0.00013639,2]
[352830601,1739353847854,-4419.04,0.00013639,2]
[352830603,1739353847864,-500.0,0.00013639,2]
[352830605,1739353847875,-151.478029,0.00013639,2]
[352830607,1739353847885,-539.44,0.00013639,2]
[352830609,1739353847894,-622.3,0.00013639,2]
[352830611,1739353847904,-500.0,0.0001364,2]
[352830613,1739353847914,-529.42,0.0001364,2]
[352830615,1739353847925,-500.23501456,0.00013698,2]
[352830617,1739353847935,-1000.0,0.00013698,2]
[352830619,1739353847944,-1084.16513233,0.00013698,2]
[352830621,1739353847954,-559.348024,0.00013699,2]
[352830623,1739353847964,-736.910822,0.00013699,2]
[352830625,1739353847973,-156.1536286,0.00013699,2]
[352830627,1739353847983,-153.0,0.00013699,2]
[352830629,1739353847993,-215.8799648,0.00013699,2]
[352830631,1739353848003,-154.6337486,0.00013699,2]
[352830633,1739353848014,-215.8799648,0.00013699,2]
[352830635,1739353848024,-153.3457281,0.00013699,2]
[352830637,1739353848034,-154.6337486,0.00013699,2]
[352830639,1739353848045,-215.8799648,0.00013699,2]
[352830641,1739353848055,-500.0,0.00013699,2]
[352830652,1739353848166,-500.0,0.00013699,2]
[352830654,1739353848178,-500.0,0.00013699,2]
[352830656,1739353848188,-500.0,0.00013699,2]
[352830658,1739353848199,-500.0,0.00013699,2]
[352830660,1739353848209,-500.0,0.00013699,2]
[352830662,1739353848220,-500.0,0.00013699,2]
[352830664,1739353848231,-500.0,0.00013699,2]
[352830666,1739353848243,-500.0,0.00013699,2]
[352830668,1739353848253,-500.0,0.00013699,2]
[352830670,1739353848263,-500.0,0.00013699,2]
[352830672,1739353848273,-500.0,0.00013699,2]
[352830674,1739353848283,-500.0,0.00013699,2]
[352830676,1739353848293,-500.0,0.00013699,2]
[352830678,1739353848305,-500.0,0.00013699,2]
[352830680,1739353848318,-500.0,0.00013699,2]
[352830682,1739353848329,-500.0,0.00013699,2]
[352830684,1739353848338,-500.0,0.00013699,2]
[352830686,1739353848350,-500.0,0.00013699,2]
[352830688,1739353848360,-500.0,0.00013699,2]
[352830690,1739353848370,-500.0,0.00013699,2]
[352830691,1739353848380,-500.0,0.00013699,2]
[352830693,1739353848389,-500.0,0.00013699,2]
[352830695,1739353848399,-500.0,0.00013699,2]
[352830697,1739353848409,-500.0,0.00013699,2]
[352830699,1739353848419,-500.0,0.00013699,2]
[352830701,1739353848429,-500.0,0.00013699,2]
[352830703,1739353848440,-500.0,0.00013699,2]
[352830706,1739353848457,-500.0,0.00013699,2]
[352830708,1739353848467,-500.0,0.00013699,2]
[352830709,1739353848477,-500.0,0.00013699,2]
[352830711,1739353848487,-500.0,0.00013699,2]
[352830713,1739353848497,-500.0,0.00013699,2]
[352830715,1739353848507,-500.0,0.00013699,2]
[352830717,1739353848518,-500.0,0.00013699,2]
[352830719,1739353848529,-500.0,0.00013699,2]
[352830722,1739353848540,-500.0,0.00013699,2]
[352830723,1739353848551,-500.0,0.00013699,2]
[352830726,1739353848562,-270.96689458,0.00013699,2]
[352830728,1739353848573,-500.0,0.00013699,2]
[352830730,1739353848583,-500.0,0.00013699,2]
[352830731,1739353848593,-500.0,0.00013699,2]
[352830734,1739353848603,-500.0,0.00013699,2]
[352830736,1739353848615,-500.0,0.00013699,2]
[352830738,1739353848626,-500.0,0.00013699,2]
[352830740,1739353848637,-500.0,0.00013699,2]
[352830742,1739353848647,-500.0,0.00013699,2]
[352830744,1739353848657,-650.0,0.00013699,2]
[352830746,1739353848667,-500.0,0.00013699,2]
[352830748,1739353848677,-500.0,0.00013699,2]
[352830750,1739353848687,-500.0,0.00013699,2]
[352830752,1739353848696,-500.0,0.00013747,2]
[352830754,1739353848707,-500.0,0.00013775,2]
[352830756,1739353848717,-793.11,0.00013775,2]
[352830758,1739353848727,-500.0,0.00013775,2]
[352830760,1739353848739,-786.36,0.00013775,2]
[352830762,1739353848749,-500.0,0.00013775,2]
[352830764,1739353848759,-501.12,0.00013775,2]
[352830766,1739353848768,-500.0,0.00013775,2]
[352830768,1739353848778,-546.49,0.00013775,2]
[352830770,1739353848787,-465.84,0.00013775,2]
[352830772,1739353848798,-500.0,0.00013776,2]
[352830774,1739353848807,-500.0,0.00013776,2]
[352830776,1739353848818,-500.0,0.00013776,2]
[352830778,1739353848828,-1113.65,0.00013776,2]
[352830780,1739353848839,-3568.64,0.00013776,2]
[352830782,1739353848849,-500.0,0.00013776,2]
[352830783,1739353848859,-12078.98,0.00013776,2]
[352830786,1739353848870,-689.15,0.00013776,2]
[352830787,1739353848881,-295.01765703,0.00013776,2]
[352830789,1739353848891,-4419.04,0.00013776,2]
[352830791,1739353848903,-500.0,0.00013776,2]
[352830794,1739353848914,-539.44,0.00013776,2]
[352830795,1739353848935,-622.3,0.00013776,2]
[352830796,1739353848952,-500.0,0.00013777,2]
[352830797,1739353848962,-529.42,0.00013777,2]
[352830798,1739353848973,-9998.59299344,0.000138,2]
[352830799,1739353848983,-500.0,0.00013912,2]
[352830800,1739353848994,-793.11,0.00013912,2]
[352830801,1739353849005,-151.0,0.00013912,2]
[352830802,1739353849016,-219.234385,0.00013912,2]
[352830803,1739353849026,-500.0,0.00013912,2]
[352830804,1739353849037,-219.234385,0.00013912,2]
[352830805,1739353849047,-786.36,0.00013912,2]
[352830806,1739353849057,-151.0,0.00013912,2]
[352830807,1739353849071,-154.032446,0.00013912,2]
[352830809,1739353849082,-500.0,0.00013912,2]
[352830811,1739353849094,-151.0,0.00013912,2]
[352830813,1739353849104,-501.12,0.00013912,2]
[352830815,1739353849115,-500.0,0.00013912,2]
[352830816,1739353849126,-546.49,0.00013912,2]
[352830818,1739353849136,-151.0,0.00013912,2]
[352830820,1739353849146,-151.0,0.00013912,2]
[352830822,1739353849156,-500.0,0.00013913,2]
[352830824,1739353849167,-506.57843858,0.00013913,2]
[352830826,1739353849176,-500.0,0.00013913,2]
[352830828,1739353849187,-1113.65,0.00013913,2]
[352830830,1739353849197,-3568.64,0.00013913,2]
[352830832,1739353849208,-500.0,0.00013913,2]
[352830834,1739353849218,-12078.98,0.00013913,2]
[352830836,1739353849228,-689.15,0.00013913,2]
[352830838,1739353849238,-2120.70264607,0.00013913,2]
[352830848,1739353849346,-2298.33735393,0.00013913,2]
[352830850,1739353849359,-500.0,0.00013913,2]
[352830852,1739353849371,-539.44,0.00013913,2]
[352830854,1739353849382,-622.3,0.00013913,2]
[352830856,1739353849392,-500.0,0.00013914,2]
[352830858,1739353849403,-529.42,0.00013914,2]
[352830860,1739353849414,-151.0,0.00013914,2]
[352830862,1739353849423,-151.0,0.00013914,2]
[352830864,1739353849434,-151.0,0.00013914,2]
[352830866,1739353849444,-316.003,0.00013996,2]
[352830868,1739353849456,-9998.59299344,0.00014,2]
[352830870,1739353849466,-500.0,0.00014049,2]
[352830872,1739353849476,-793.11,0.00014049,2]
[352830874,1739353849487,-500.0,0.00014049,2]
[352830876,1739353849497,-786.36,0.00014049,2]
[352830877,1739353849506,-500.0,0.00014049,2]
[352830879,1739353849516,-501.12,0.00014049,2]
[352830881,1739353849527,-500.0,0.00014049,2]
[352830883,1739353849536,-546.49,0.00014049,2]
[352830885,1739353849547,-370.83411648,0.0001405,2]
[352830888,1739353849561,-119.77847092,0.0001405,2]
[352830890,1739353849573,-500.0,0.0001405,2]
[352830892,1739353849583,-151.0,0.0001405,2]
[352830893,1739353849593,-151.0,0.0001405,2]
[352830895,1739353849602,-1113.65,0.0001405,2]
[352830897,1739353849612,-3568.64,0.0001405,2]
[352830899,1739353849624,-591.43,0.0001405,2]
[352830901,1739353849635,-12078.98,0.0001405,2]
[352830903,1739353849645,-689.15,0.0001405,2]
[352830905,1739353849656,-4419.04,0.0001405,2]
[352830907,1739353849667,-500.0,0.0001405,2]
[352830909,1739353849678,-539.44,0.0001405,2]
[352830911,1739353849687,-622.3,0.0001405,2]
[352830914,1739353849699,-500.0,0.00014051,2]
[352830915,1739353849709,-529.42,0.00014051,2]
[352830918,1739353849719,-215.8799648,0.00014164,2]
[352830919,1739353849729,-234.42,0.00014186,2]
[352830921,1739353849738,-793.11,0.00014186,2]
[352830924,1739353849749,-500.0,0.00014186,2]
[352830925,1739353849759,-786.36,0.00014186,2]
[352830927,1739353849769,-500.0,0.00014186,2]
[352830929,1739353849778,-501.12,0.00014186,2]
[352830931,1739353849788,-500.0,0.00014186,2]
[352830933,1739353849797,-546.49,0.00014186,2]
[352830935,1739353849807,-500.0,0.00014187,2]
[352830937,1739353849817,-1113.65,0.00014187,2]
[352830939,1739353849826,-3568.64,0.00014187,2]
[352830941,1739353849835,-3788.49731776,0.00014187,2]
[352830943,1739353849847,-3412.42525625,0.00014187,2]
[352830948,1739353849890,-4878.05742599,0.00014187,2]
[352830950,1739353849900,-689.15,0.00014187,2]
[352830952,1739353849911,-4419.04,0.00014187,2]
[352830954,1739353849920,-500.0,0.00014187,2]
[352830956,1739353849929,-539.44,0.00014187,2]
[352830958,1739353849939,-622.3,0.00014187,2]
[352830960,1739353849949,-500.0,0.00014188,2]
[352830962,1739353849958,-529.42,0.00014188,2]
[352830964,1739353849970,-154.7299507,0.00014192,2]
[352830966,1739353849980,-154.6337486,0.00014192,2]
[352830968,1739353849990,-215.8799648,0.00014192,2]
[352830970,1739353849999,-153.0,0.00014192,2]
[352830972,1739353850010,-154.6337486,0.00014192,2]
[352830974,1739353850019,-215.8799648,0.00014192,2]
[352830976,1739353850029,-154.6337486,0.00014192,2]
[352830978,1739353850039,-153.0,0.00014192,2]
[352830980,1739353850048,-153.0,0.00014192,2]
[352830982,1739353850058,-265.946269,0.000143,2]
[352830984,1739353850068,-151.0,0.000143,2]
[352830986,1739353850079,-265.946269,0.000143,2]
[352830988,1739353850089,-151.0,0.000143,2]
[352830990,1739353850099,-151.0,0.000143,2]
[352830992,1739353850108,-2007.33388216,0.000143,2]
[352831007,1739353850258,-500.0,0.00011995,2]
[352831008,1739353850269,-461.88675594,0.00012132,2]
[352831018,1739353850355,-500.0,0.00011994,2]
[352831020,1739353850366,-38.11324406,0.00012132,2]
[352831022,1739353850378,-500.0,0.00012269,2]
[352831024,1739353850389,-500.0,0.00012406,2]
[352831026,1739353850399,-500.0,0.00012543,2]
[352831027,1739353850408,-500.0,0.0001268,2]
[352831029,1739353850418,-500.0,0.00012817,2]
[352831031,1739353850428,-500.0,0.00012954,2]
[352831033,1739353850437,-500.0,0.00013091,2]
[352831035,1739353850447,-500.0,0.00013228,2]
[352831037,1739353850457,-500.0,0.00013365,2]
[352831040,1739353850468,-500.0,0.00013502,2]
[352831042,1739353850477,-393.7761814,0.00013639,2]
[352831043,1739353850486,-1388.92739424,0.000143,2]
[352831056,1739353850600,-1604.01457643,0.000143,2]
[352831059,1739353850611,-5000.0,0.000143,2]
[352831061,1739353850620,-5000.0,0.000143,2]
[352831062,1739353850633,-5000.0,0.000143,2]
[352831065,1739353850644,-5000.0,0.000143,2]
[352831066,1739353850654,-793.11,0.00014323,2]
[352831068,1739353850664,-384.4685877,0.00014323,2]
[352831071,1739353850674,-786.36,0.00014323,2]
[352831072,1739353850683,-500.0,0.00014323,2]
[352831074,1739353850693,-501.12,0.00014323,2]
[352831076,1739353850702,-500.0,0.00014323,2]
[352831078,1739353850712,-546.49,0.00014323,2]
[352831080,1739353850721,-500.0,0.00014324,2]
[352831082,1739353850731,-1113.65,0.00014324,2]
[352831084,1739353850741,-3568.64,0.00014324,2]
[352831086,1739353850751,-12078.98,0.00014324,2]
[352831088,1739353850761,-689.15,0.00014324,2]
[352831090,1739353850770,-4419.04,0.00014324,2]
[352831092,1739353850780,-500.0,0.00014324,2]
[352831094,1739353850790,-539.44,0.00014324,2]
[352831096,1739353850800,-622.3,0.00014324,2]
[352831098,1739353850809,-67.13983098,0.00014325,2]
[352836354,1739354830149,-450.0,0.00010585,2]
[352836355,1739354844106,-23.84908877,0.00010585,2]
[352836356,1739354844128,-400.0,0.00010685,2]
[352836357,1739354844149,-201.8681232,0.00011028,2]
[352836358,1739354844171,-915.08941397,0.00011609,2]
[352836359,1739354844193,-4674.88838826,0.00011975,2]
[352836360,1739354854090,-173.01490391,0.00011975,2]
[352836361,1739354962106,-500.0,0.00011991,2]
[352836362,1739354962131,-500.0,0.00011991,2]
[352836363,1739354962153,-500.0,0.00011991,2]
[352836364,1739354962175,-300.0,0.00011991,2]
[352836365,1739354962203,-500.0,0.00011991,2]
[352836366,1739354962224,-500.0,0.00011992,2]
[352836367,1739354962245,-500.0,0.00011992,2]
[352836368,1739354962267,-598.75702315,0.00011992,2]
[352836369,1739354962289,-500.0,0.00011992,2]
[352836370,1739354962313,-500.0,0.00011992,2]
[352836371,1739354962334,-500.0,0.00011992,2]
[352836372,1739354962354,-500.0,0.00011992,2]
[352836373,1739354962377,-500.0,0.00011992,2]
[352836374,1739354962398,-500.0,0.00011992,2]
[352836375,1739354962420,-219.64712831,0.00011992,2]
[352836376,1739354962442,-500.0,0.00011992,2]
[352836377,1739354962464,-232.1578468,0.00011992,2]
[352836378,1739354962485,-500.0,0.00011992,2]
[352836379,1739354962505,-500.0,0.00011992,2]
[352836380,1739354962525,-500.0,0.00011992,2]
[352836381,1739354962546,-500.0,0.00011992,2]
[352836382,1739354962566,-500.0,0.00011992,2]
[352836383,1739354962587,-500.0,0.00011992,2]
[352836384,1739354962610,-500.0,0.00011992,2]
[352836385,1739354962632,-500.0,0.00011992,2]
[352836386,1739354962653,-500.0,0.00011992,2]
[352836387,1739354962676,-500.0,0.00011992,2]
[352836388,1739354962696,-500.0,0.00011992,2]
[352836389,1739354962717,-500.0,0.00011992,2]
[352836390,1739354962740,-2816.37,0.00011992,2]
[352836391,1739354962765,-8858.28,0.00011992,2]
[352836392,1739354962788,-554.91,0.00011992,2]
[352836393,1739354962809,-500.0,0.00011992,2]
[352836394,1739354962830,-369.56167079,0.00011992,2]
[352836395,1739354962851,-532.94,0.00011992,2]
[352836396,1739354962874,-500.0,0.00011992,2]
[352836397,1739354962896,-500.0,0.00011992,2]
[352836398,1739354962919,-1123.34,0.00011992,2]
[352836399,1739354962942,-500.0,0.00011992,2]
[352836400,1739354962963,-500.0,0.00011992,2]
[352836401,1739354962985,-500.0,0.00011992,2]
[352836402,1739354963007,-500.0,0.00011992,2]
[352836403,1739354963028,-500.0,0.00011992,2]
[352836404,1739354963050,-500.0,0.00011992,2]
[352836405,1739354963071,-500.0,0.00011992,2]
[352836406,1739354963093,-500.0,0.00011992,2]
[352836407,1739354963116,-582.82,0.00011992,2]
[352836408,1739354963142,-500.0,0.00011992,2]
[352836409,1739354963164,-500.0,0.00011992,2]
[352836410,1739354963193,-500.0,0.00011992,2]
[352836411,1739354963214,-500.0,0.00011992,2]
[352836412,1739354963234,-500.0,0.00011992,2]